[Event "*** Titled Tuesday Blitz"]
[Site "Chess.com"]
[Date "2020.05.12"]
[Round "3"]
[White "IMinTheWings"]
[Black "MartinMatthiesen"]
[Result "1-0"]
[WhiteElo "2210"]
[BlackElo "2415"]
[TimeControl "180+1"]
[EndTime "10:29:06 PDT"]
[Termination "IMinTheWings won by resignation"]

1. c4 {[%clk 0:03:00.9]} 1... c5 {[%clk 0:02:49.6]} 2. Nf3 {[%clk 0:03:00.8]}
2... Nc6 {[%clk 0:02:47.8]} 3. d4 {[%clk 0:03:01.4]} 3... cxd4 {[%clk
0:02:47.4]} 4. Nxd4 {[%clk 0:03:02.3]} 4... Nf6 {[%clk 0:02:47.1]} 5. Nc3 {[%clk
0:03:02.7]} 5... e6 {[%clk 0:02:47.3]} 6. a3 {[%clk 0:03:01.9]} 6... Bc5 {[%clk
0:02:43.6]} 7. Nc2 {[%clk 0:03:00.9]} 7... d5 {[%clk 0:02:42.3]} 8. b4 {[%clk
0:02:58.8]} 8... Bb6 {[%clk 0:02:33.3]} 9. cxd5 {[%clk 0:02:51.6]} 9... exd5
{[%clk 0:02:32.7]} 10. e3 {[%clk 0:02:50.1]} 10... O-O {[%clk 0:02:26.6]} 11.
Be2 {[%clk 0:02:47.4]} 11... d4 {[%clk 0:02:18.2]} 12. exd4 {[%clk 0:02:43.8]}
12... Nxd4 {[%clk 0:02:17.7]} 13. Nxd4 {[%clk 0:02:43.9]} 13... Qxd4 {[%clk
0:02:15.6]} 14. Qxd4 {[%clk 0:02:41.8]} 14... Bxd4 {[%clk 0:02:15.5]} 15. Bb2
{[%clk 0:02:36.6]} 15... Re8 {[%clk 0:01:24.6]} 16. Rd1 {[%clk 0:02:14.3]} 16...
Be5 {[%clk 0:01:08.5]} 17. g3 {[%clk 0:02:09.4]} 17... Bg4 {[%clk 0:01:01.7]}
18. Rd2 {[%clk 0:01:35.9]} 18... Rac8 {[%clk 0:00:34.9]} 19. Nd1 {[%clk
0:01:18.2]} 19... Bxe2 {[%clk 0:00:18.3]} 20. Rxe2 {[%clk 0:01:15.6]} 20... Bxb2
{[%clk 0:00:18.2]} 21. Nxb2 {[%clk 0:01:15.7]} 21... Rc1+ {[%clk 0:00:17.1]} 22.
Nd1 {[%clk 0:01:16]} 22... Rxe2+ {[%clk 0:00:15.7]} 23. Kxe2 {[%clk 0:01:15.9]}
23... Ra1 {[%clk 0:00:16.6]} 24. Kd3 {[%clk 0:01:06.9]} 24... Rxa3+ {[%clk
0:00:16.5]} 25. Nc3 {[%clk 0:01:07.4]} 25... Nd5 {[%clk 0:00:15.8]} 26. Rc1
{[%clk 0:01:06.4]} 26... Nxc3 {[%clk 0:00:15.7]} 27. Rxc3 {[%clk 0:01:06.4]}
27... Rxc3+ {[%clk 0:00:16.6]} 28. Kxc3 {[%clk 0:01:07.3]} 28... Kf8 {[%clk
0:00:17.1]} 29. Kc4 {[%clk 0:01:07.9]} 29... Ke7 {[%clk 0:00:17.3]} 30. Kc5
{[%clk 0:01:08.5]} 30... Kd7 {[%clk 0:00:17.6]} 31. b5 {[%clk 0:01:09.1]} 31...
Kc7 {[%clk 0:00:17.6]} 32. f4 {[%clk 0:01:09.7]} 32... b6+ {[%clk 0:00:16.4]}
33. Kc4 {[%clk 0:01:10]} 33... Kb7 {[%clk 0:00:16.6]} 34. Kd5 {[%clk 0:01:09.8]}
34... a5 {[%clk 0:00:16.7]} 35. bxa6+ {[%clk 0:01:09.8]} 35... Kxa6 {[%clk
0:00:16.9]} 36. Kd6 {[%clk 0:01:10.5]} 36... b5 {[%clk 0:00:17.1]} 37. Ke7
{[%clk 0:01:11.2]} 37... b4 {[%clk 0:00:17.6]} 38. Kxf7 {[%clk 0:01:12]} 38...
b3 {[%clk 0:00:18.5]} 39. Kxg7 {[%clk 0:01:12.8]} 39... b2 {[%clk 0:00:19.4]}
40. f5 {[%clk 0:01:13.5]} 40... b1=Q {[%clk 0:00:20.3]} 41. f6 {[%clk
0:01:14.2]} 41... Qf5 {[%clk 0:00:20.8]} 42. f7 {[%clk 0:01:14.4]} 42... Qg5+
{[%clk 0:00:20.5]} 43. Kxh7 {[%clk 0:01:14.9]} 43... Qf6 {[%clk 0:00:20.3]} 44.
Kg8 {[%clk 0:01:14.9]} 44... Qg6+ {[%clk 0:00:20.6]} 45. Kh8 {[%clk 0:01:15.3]}
45... Kb7 {[%clk 0:00:21.5]} 46. f8=Q {[%clk 0:01:14.6]} 46... Qh5+ {[%clk
0:00:21.4]} 47. Kg8 {[%clk 0:01:14.7]} 47... Qxh2 {[%clk 0:00:20.6]} 48. Qg7+
{[%clk 0:01:14.7]} 48... Kc6 {[%clk 0:00:20.4]} 49. g4 {[%clk 0:01:15.2]} 49...
Qf4 {[%clk 0:00:19.1]} 50. g5 {[%clk 0:01:15]} 50... Qg4 {[%clk 0:00:17.4]} 51.
Qf6+ {[%clk 0:01:12.6]} 51... Kb7 {[%clk 0:00:17]} 52. g6 {[%clk 0:01:12.5]}
52... Qh3 {[%clk 0:00:15]} 53. g7 {[%clk 0:01:11.7]} 53... Ka7 {[%clk
0:00:14.3]} 54. Qf7+ {[%clk 0:01:09.2]} 54... Ka6 {[%clk 0:00:13]} 55. Kf8
{[%clk 0:01:07.5]} 55... Qc8+ {[%clk 0:00:12.4]} 56. Ke7 {[%clk 0:01:07.4]}
56... Qc5+ {[%clk 0:00:12.2]} 57. Kf6 {[%clk 0:01:07.9]} 57... Qf2+ {[%clk
0:00:11.7]} 58. Kg6 {[%clk 0:01:06.1]} 58... Qg3+ {[%clk 0:00:11.7]} 59. Kf5
{[%clk 0:01:05.7]} 59... Qf3+ {[%clk 0:00:10.7]} 60. Ke6 {[%clk 0:01:05.9]}
60... Qb3+ {[%clk 0:00:09.6]} 61. Ke7 {[%clk 0:01:05.3]} 61... Qb4+ {[%clk
0:00:09.7]} 62. Ke8 {[%clk 0:01:01.8]} 62... Qb8+ {[%clk 0:00:09.4]} 63. Ke7
{[%clk 0:01:00.5]} 63... Qb4+ {[%clk 0:00:09.9]} 64. Kd7 {[%clk 0:00:59.1]}
64... Qb7+ {[%clk 0:00:09.6]} 65. Ke6 {[%clk 0:00:55.8]} 65... Qb3+ {[%clk
0:00:09.3]} 66. Kf6 {[%clk 0:00:54.2]} 66... Qf3+ {[%clk 0:00:09]} 67. Kg6
{[%clk 0:00:54.2]} 67... Qg4+ {[%clk 0:00:09]} 68. Kh6 {[%clk 0:00:52.5]} 68...
Qh3+ {[%clk 0:00:08.8]} 69. Qh5 {[%clk 0:00:52.6]} 69... Qd3 {[%clk 0:00:06.4]}
70. Qg6+ {[%clk 0:00:48.6]} 1-0

[Event "*** Titled Tuesday Blitz"]
[Site "Chess.com"]
[Date "2020.05.12"]
[Round "3"]
[White "noblerone"]
[Black "marszach123"]
[Result "1-0"]
[WhiteElo "2413"]
[BlackElo "2182"]
[TimeControl "180+1"]
[EndTime "10:29:07 PDT"]
[Termination "noblerone won on time"]

1. d4 {[%clk 0:03:00.9]} 1... Nf6 {[%clk 0:03:00.2]} 2. Bg5 {[%clk 0:03:00.4]}
2... e6 {[%clk 0:03:00.7]} 3. Nd2 {[%clk 0:02:56.7]} 3... d5 {[%clk 0:02:58.3]}
4. e3 {[%clk 0:02:56]} 4... Be7 {[%clk 0:02:58]} 5. Bd3 {[%clk 0:02:56]} 5... h6
{[%clk 0:02:58]} 6. Bh4 {[%clk 0:02:55.8]} 6... c5 {[%clk 0:02:57.1]} 7. c3
{[%clk 0:02:55.7]} 7... Nc6 {[%clk 0:02:56]} 8. f4 {[%clk 0:02:54.2]} 8... b6
{[%clk 0:02:52.1]} 9. Ngf3 {[%clk 0:02:51.9]} 9... O-O {[%clk 0:02:49]} 10. O-O
{[%clk 0:02:50.1]} 10... Bb7 {[%clk 0:02:45.8]} 11. Ne5 {[%clk 0:02:33.9]} 11...
Nd7 {[%clk 0:02:26.1]} 12. Bxe7 {[%clk 0:02:32.1]} 12... Nxe7 {[%clk 0:02:19.5]}
13. Rf2 {[%clk 0:02:19.9]} 13... f6 {[%clk 0:02:16.8]} 14. Nef3 {[%clk
0:02:12.6]} 14... cxd4 {[%clk 0:02:11.2]} 15. exd4 {[%clk 0:02:11.2]} 15... Qc7
{[%clk 0:01:55.4]} 16. Qe2 {[%clk 0:02:09.3]} 16... Qd6 {[%clk 0:01:39.7]} 17.
Re1 {[%clk 0:02:02.8]} 17... Kf7 {[%clk 0:01:39.3]} 18. Ne5+ {[%clk 0:01:51.3]}
18... Kg8 {[%clk 0:01:08.8]} 19. Nxd7 {[%clk 0:01:41.8]} 19... Qxd7 {[%clk
0:01:09.3]} 20. Qxe6+ {[%clk 0:01:42.4]} 20... Qxe6 {[%clk 0:01:09.8]} 21. Rxe6
{[%clk 0:01:43.3]} 21... Kf7 {[%clk 0:01:09.9]} 22. Rfe2 {[%clk 0:01:36]} 22...
Rfe8 {[%clk 0:01:10.2]} 23. Kf2 {[%clk 0:01:17.8]} 23... Bc8 {[%clk 0:01:05.7]}
24. Bg6+ {[%clk 0:00:49.5]} 24... Kxg6 {[%clk 0:01:05.2]} 25. Rxe7 {[%clk
0:00:49.8]} 25... Rxe7 {[%clk 0:01:02.5]} 26. Rxe7 {[%clk 0:00:50.7]} 26... Bf5
{[%clk 0:00:59]} 27. h3 {[%clk 0:00:47.5]} 27... b5 {[%clk 0:00:53.3]} 28. g4
{[%clk 0:00:44.2]} 28... Bc2 {[%clk 0:00:50.2]} 29. f5+ {[%clk 0:00:43.2]} 29...
Kh7 {[%clk 0:00:48.5]} 30. Rd7 {[%clk 0:00:29.3]} 30... a5 {[%clk 0:00:48.2]}
31. Rxd5 {[%clk 0:00:29.1]} 31... b4 {[%clk 0:00:48.6]} 32. c4 {[%clk
0:00:27.2]} 32... a4 {[%clk 0:00:40.7]} 33. c5 {[%clk 0:00:26.4]} 33... Rc8
{[%clk 0:00:36.3]} 34. Rd6 {[%clk 0:00:24.2]} 34... a3 {[%clk 0:00:31.9]} 35.
bxa3 {[%clk 0:00:22.9]} 35... bxa3 {[%clk 0:00:31.5]} 36. Nc4 {[%clk 0:00:23.3]}
36... Bd3 {[%clk 0:00:21.5]} 37. Nxa3 {[%clk 0:00:20.5]} 37... Ra8 {[%clk
0:00:20.7]} 38. c6 {[%clk 0:00:21.1]} 38... Rxa3 {[%clk 0:00:20.5]} 39. d5
{[%clk 0:00:19.7]} 39... Rc3 {[%clk 0:00:11.4]} 40. Rd7 {[%clk 0:00:17.6]} 40...
Be4 {[%clk 0:00:04.2]} 41. c7 {[%clk 0:00:15.7]} 41... Bxd5 {[%clk 0:00:01.5]}
42. Rxd5 {[%clk 0:00:16.6]} 42... Rxc7 {[%clk 0:00:01.5]} 43. a4 {[%clk
0:00:14.7]} 43... Rc4 {[%clk 0:00:01.4]} 44. a5 {[%clk 0:00:14.9]} 44... Ra4
{[%clk 0:00:01.9]} 45. Ke2 {[%clk 0:00:15.2]} 45... Ra3 {[%clk 0:00:02.1]} 46.
h4 {[%clk 0:00:14.1]} 46... Kg8 {[%clk 0:00:02.2]} 47. Kd2 {[%clk 0:00:13.3]}
47... Kf7 {[%clk 0:00:02.4]} 48. Kc2 {[%clk 0:00:13.5]} 48... Ra4 {[%clk
0:00:02.8]} 49. Kb3 {[%clk 0:00:12]} 49... Rxg4 {[%clk 0:00:02.2]} 50. a6 {[%clk
0:00:12.6]} 50... Rg3+ {[%clk 0:00:02.1]} 51. Kb4 {[%clk 0:00:12.6]} 51... Rg4+
{[%clk 0:00:02.3]} 52. Kb5 {[%clk 0:00:12.7]} 52... Rxh4 {[%clk 0:00:02.5]} 53.
a7 {[%clk 0:00:12.8]} 1-0

[Event "*** Titled Tuesday Blitz"]
[Site "Chess.com"]
[Date "2020.05.12"]
[Round "3"]
[White "GMSrinath"]
[Black "FMJoseHerrera"]
[Result "1-0"]
[WhiteElo "2819"]
[BlackElo "2616"]
[TimeControl "180+1"]
[EndTime "10:29:10 PDT"]
[Termination "GMSrinath won on time"]

1. Nf3 {[%clk 0:02:53.8]} 1... Nf6 {[%clk 0:02:57.6]} 2. c4 {[%clk 0:02:54.1]}
2... g6 {[%clk 0:02:56.7]} 3. b3 {[%clk 0:02:53]} 3... Bg7 {[%clk 0:02:56.5]} 4.
Bb2 {[%clk 0:02:53.9]} 4... d6 {[%clk 0:02:55.2]} 5. g3 {[%clk 0:02:54.3]} 5...
h5 {[%clk 0:02:53.6]} 6. Bg2 {[%clk 0:02:53.3]} 6... c6 {[%clk 0:02:51.3]} 7.
Nc3 {[%clk 0:02:53.2]} 7... h4 {[%clk 0:02:45.7]} 8. Nxh4 {[%clk 0:02:52.8]}
8... Bg4 {[%clk 0:02:42.7]} 9. h3 {[%clk 0:02:49.9]} 9... Bd7 {[%clk 0:02:37.5]}
10. Nf3 {[%clk 0:02:49.1]} 10... Qc8 {[%clk 0:02:32.7]} 11. g4 {[%clk
0:02:49.6]} 11... a5 {[%clk 0:02:27.6]} 12. Qc2 {[%clk 0:02:46.3]} 12... Na6
{[%clk 0:02:25.9]} 13. a3 {[%clk 0:02:46.4]} 13... Nc5 {[%clk 0:02:23]} 14. d4
{[%clk 0:02:44.6]} 14... Ne6 {[%clk 0:02:21]} 15. e3 {[%clk 0:02:44.7]} 15... b5
{[%clk 0:02:12.6]} 16. Rc1 {[%clk 0:02:36]} 16... bxc4 {[%clk 0:02:02.7]} 17.
bxc4 {[%clk 0:02:34.2]} 17... Qa6 {[%clk 0:02:03.2]} 18. Nd2 {[%clk 0:02:19.4]}
18... Rb8 {[%clk 0:02:00.9]} 19. Ba1 {[%clk 0:02:18.4]} 19... Ng5 {[%clk
0:01:42.1]} 20. f4 {[%clk 0:02:13.9]} 20... Ne6 {[%clk 0:01:37.6]} 21. O-O
{[%clk 0:02:14.4]} 21... Nc7 {[%clk 0:01:15.6]} 22. Rb1 {[%clk 0:02:08.1]} 22...
Rc8 {[%clk 0:01:09.2]} 23. Nce4 {[%clk 0:02:03.9]} 23... O-O {[%clk 0:01:03.3]}
24. Ng5 {[%clk 0:02:02.7]} 24... d5 {[%clk 0:01:02.3]} 25. Rfc1 {[%clk
0:01:58.8]} 25... dxc4 {[%clk 0:00:57.4]} 26. Nxc4 {[%clk 0:01:57.6]} 26... Ncd5
{[%clk 0:00:57]} 27. Ne5 {[%clk 0:01:58.1]} 27... Nxe3 {[%clk 0:00:55]} 28. Qb3
{[%clk 0:01:48.7]} 28... Nxg2 {[%clk 0:00:54.6]} 29. Ngxf7 {[%clk 0:01:21.4]}
29... Nd5 {[%clk 0:00:54.3]} 30. Kxg2 {[%clk 0:01:03.5]} 30... Qe2+ {[%clk
0:00:53.4]} 31. Kg3 {[%clk 0:01:03.9]} 31... Be6 {[%clk 0:00:52.8]} 32. Ng5
{[%clk 0:01:00.5]} 32... Rxf4 {[%clk 0:00:31.4]} 33. Rc2 {[%clk 0:00:34.9]}
33... Qe3+ {[%clk 0:00:10.6]} 34. Qxe3 {[%clk 0:00:34]} 34... Nxe3 {[%clk
0:00:11.5]} 35. Kxf4 {[%clk 0:00:29.7]} 35... Nxc2 {[%clk 0:00:10.6]} 36. Nxe6
{[%clk 0:00:30.2]} 36... Nxa1 {[%clk 0:00:10.4]} 37. Nxg7 {[%clk 0:00:20.4]}
37... Kxg7 {[%clk 0:00:09.2]} 38. Rxa1 {[%clk 0:00:20.2]} 38... c5 {[%clk
0:00:09.8]} 39. d5 {[%clk 0:00:19.1]} 39... c4 {[%clk 0:00:09.1]} 40. Rc1 {[%clk
0:00:18.9]} 40... c3 {[%clk 0:00:09]} 41. Rc2 {[%clk 0:00:19.5]} 41... Rc5
{[%clk 0:00:08.6]} 42. Ke4 {[%clk 0:00:18.3]} 42... Kf6 {[%clk 0:00:08.8]} 43.
Nd7+ {[%clk 0:00:18.3]} 1-0

[Event "*** Titled Tuesday Blitz"]
[Site "Chess.com"]
[Date "2020.05.12"]
[Round "3"]
[White "ZverevLev"]
[Black "GeorgMeier"]
[Result "0-1"]
[WhiteElo "2106"]
[BlackElo "3021"]
[TimeControl "180+1"]
[EndTime "10:29:12 PDT"]
[Termination "GeorgMeier won on time"]

1. e4 {[%clk 0:03:00.9]} 1... e6 {[%clk 0:03:00.2]} 2. d4 {[%clk 0:02:57.1]}
2... d5 {[%clk 0:03:00.7]} 3. exd5 {[%clk 0:02:53.1]} 3... exd5 {[%clk
0:03:00.3]} 4. Bd3 {[%clk 0:02:51.3]} 4... Nf6 {[%clk 0:03:00.1]} 5. Nf3 {[%clk
0:02:46.4]} 5... Be7 {[%clk 0:02:57.8]} 6. O-O {[%clk 0:02:43.5]} 6... O-O
{[%clk 0:02:57.6]} 7. h3 {[%clk 0:02:43.4]} 7... c6 {[%clk 0:02:54.8]} 8. c3
{[%clk 0:02:42.6]} 8... Nbd7 {[%clk 0:02:53.8]} 9. Nbd2 {[%clk 0:02:39.8]} 9...
Re8 {[%clk 0:02:52.6]} 10. Re1 {[%clk 0:02:38.1]} 10... Nf8 {[%clk 0:02:47.9]}
11. Nf1 {[%clk 0:02:35]} 11... Ng6 {[%clk 0:02:45.3]} 12. Ng3 {[%clk 0:02:31.9]}
12... Bf8 {[%clk 0:02:42.8]} 13. Rxe8 {[%clk 0:02:28.7]} 13... Nxe8 {[%clk
0:02:42.3]} 14. Be3 {[%clk 0:02:28.3]} 14... Nd6 {[%clk 0:02:42.1]} 15. Qc2
{[%clk 0:02:27.4]} 15... Nc4 {[%clk 0:02:33.5]} 16. Bg5 {[%clk 0:02:23.3]} 16...
Qc7 {[%clk 0:02:31.3]} 17. b3 {[%clk 0:02:20]} 17... Nd6 {[%clk 0:02:29.9]} 18.
Re1 {[%clk 0:02:16.7]} 18... Be6 {[%clk 0:02:22.2]} 19. h4 {[%clk 0:02:13.5]}
19... Be7 {[%clk 0:01:34.5]} 20. h5 {[%clk 0:02:08.9]} 20... Nf8 {[%clk
0:01:28.6]} 21. Nf5 {[%clk 0:01:56.3]} 21... Bxg5 {[%clk 0:01:18.3]} 22. Nxg5
{[%clk 0:01:49.5]} 22... Bxf5 {[%clk 0:01:18.2]} 23. Bxf5 {[%clk 0:01:45.7]}
23... h6 {[%clk 0:01:18.7]} 24. Nf3 {[%clk 0:01:38.2]} 24... Re8 {[%clk
0:01:16.6]} 25. Rxe8 {[%clk 0:01:28.2]} 25... Nxe8 {[%clk 0:01:17.5]} 26. Ne5
{[%clk 0:01:27.5]} 26... Qe7 {[%clk 0:01:12.7]} 27. g3 {[%clk 0:01:23.7]} 27...
Nf6 {[%clk 0:01:12.2]} 28. Qd1 {[%clk 0:01:19.9]} 28... Ne6 {[%clk 0:01:10.7]}
29. f4 {[%clk 0:01:14.2]} 29... c5 {[%clk 0:00:55.8]} 30. Qd2 {[%clk 0:01:09.4]}
30... cxd4 {[%clk 0:00:47.4]} 31. cxd4 {[%clk 0:01:04.8]} 31... Nxh5 {[%clk
0:00:44.1]} 32. Qc2 {[%clk 0:00:55.8]} 32... Qc7 {[%clk 0:00:33.6]} 33. Qxc7
{[%clk 0:00:40.6]} 33... Nxc7 {[%clk 0:00:33.4]} 34. Kg2 {[%clk 0:00:41]} 34...
Nf6 {[%clk 0:00:32.9]} 35. a4 {[%clk 0:00:35.9]} 35... Nfe8 {[%clk 0:00:31.2]}
36. Kf3 {[%clk 0:00:31.7]} 36... Nd6 {[%clk 0:00:29.7]} 37. Bd3 {[%clk
0:00:28.4]} 37... h5 {[%clk 0:00:29.7]} 38. g4 {[%clk 0:00:21.6]} 38... Ne6
{[%clk 0:00:21.1]} 39. gxh5 {[%clk 0:00:18.6]} 39... Nxd4+ {[%clk 0:00:21.1]}
40. Kg4 {[%clk 0:00:18.9]} 40... Nxb3 {[%clk 0:00:21.2]} 41. Nd7 {[%clk
0:00:16.1]} 41... b6 {[%clk 0:00:19.4]} 42. Ne5 {[%clk 0:00:13]} 42... Nc5
{[%clk 0:00:19.4]} 43. Bb1 {[%clk 0:00:08.1]} 43... Nxa4 {[%clk 0:00:17]} 44.
Nc6 {[%clk 0:00:06.1]} 44... Nc3 {[%clk 0:00:14.1]} 45. Bc2 {[%clk 0:00:03.9]}
45... a5 {[%clk 0:00:13.6]} 46. Kg5 {[%clk 0:00:01.7]} 46... a4 {[%clk
0:00:11.3]} 0-1

[Event "*** Titled Tuesday Blitz"]
[Site "Chess.com"]
[Date "2020.05.12"]
[Round "3"]
[White "SerGo055"]
[Black "fidezivkovic"]
[Result "1-0"]
[WhiteElo "2559"]
[BlackElo "2361"]
[TimeControl "180+1"]
[EndTime "10:29:12 PDT"]
[Termination "SerGo055 won on time"]

1. d4 {[%clk 0:03:00.9]} 1... Nf6 {[%clk 0:02:59.1]} 2. Nf3 {[%clk 0:03:01.4]}
2... e6 {[%clk 0:02:58.7]} 3. c4 {[%clk 0:03:01.3]} 3... Bb4+ {[%clk 0:02:56.1]}
4. Bd2 {[%clk 0:03:01.1]} 4... Qe7 {[%clk 0:02:55.6]} 5. g3 {[%clk 0:02:59.6]}
5... Nc6 {[%clk 0:02:54.9]} 6. Bg2 {[%clk 0:02:59.7]} 6... Bxd2+ {[%clk
0:02:50.8]} 7. Nbxd2 {[%clk 0:02:57.8]} 7... O-O {[%clk 0:02:48.6]} 8. O-O
{[%clk 0:02:57.7]} 8... d6 {[%clk 0:02:48.1]} 9. e3 {[%clk 0:02:34.5]} 9... a5
{[%clk 0:02:46.3]} 10. a3 {[%clk 0:02:30.6]} 10... a4 {[%clk 0:02:40.7]} 11. Rc1
{[%clk 0:02:30]} 11... e5 {[%clk 0:02:37.4]} 12. Qc2 {[%clk 0:02:15.8]} 12...
Bg4 {[%clk 0:02:27.2]} 13. h3 {[%clk 0:02:14.2]} 13... Bh5 {[%clk 0:02:25.8]}
14. d5 {[%clk 0:01:59.2]} 14... Nb8 {[%clk 0:02:22.7]} 15. c5 {[%clk 0:01:33.2]}
15... Bxf3 {[%clk 0:01:40.5]} 16. Bxf3 {[%clk 0:01:28.8]} 16... Nbd7 {[%clk
0:01:22]} 17. cxd6 {[%clk 0:01:23.6]} 17... cxd6 {[%clk 0:01:20.6]} 18. Qc7
{[%clk 0:01:19.8]} 18... b5 {[%clk 0:01:18.6]} 19. e4 {[%clk 0:01:03.6]} 19...
Rfb8 {[%clk 0:01:12]} 20. Bg4 {[%clk 0:00:47]} 20... Nxg4 {[%clk 0:00:56.6]} 21.
hxg4 {[%clk 0:00:45.9]} 21... Rc8 {[%clk 0:00:39.5]} 22. Qxc8+ {[%clk
0:00:41.2]} 22... Rxc8 {[%clk 0:00:38.8]} 23. Rxc8+ {[%clk 0:00:42.1]} 23... Nf8
{[%clk 0:00:37.2]} 24. Nf3 {[%clk 0:00:29.2]} 24... g6 {[%clk 0:00:34.8]} 25.
Rfc1 {[%clk 0:00:28.8]} 25... Kg7 {[%clk 0:00:33.2]} 26. g5 {[%clk 0:00:26.4]}
26... Qd7 {[%clk 0:00:29.8]} 27. Rb8 {[%clk 0:00:15.3]} 27... Qg4 {[%clk
0:00:28.5]} 28. Kg2 {[%clk 0:00:14.8]} 28... h6 {[%clk 0:00:25.4]} 29. Rcc8
{[%clk 0:00:13.6]} 29... hxg5 {[%clk 0:00:21.3]} 30. Rxf8 {[%clk 0:00:13.4]}
30... Qxe4 {[%clk 0:00:21.1]} 31. Rg8+ {[%clk 0:00:08.6]} 31... Kf6 {[%clk
0:00:20.3]} 32. Rbc8 {[%clk 0:00:03]} 32... g4 {[%clk 0:00:19]} 33. Rc3 {[%clk
0:00:03.4]} 33... Qxd5 {[%clk 0:00:17.6]} 34. Rf8 {[%clk 0:00:02.6]} 34... Kg7
{[%clk 0:00:16.5]} 35. Rfc8 {[%clk 0:00:02.5]} 35... gxf3+ {[%clk 0:00:15.3]}
36. Rxf3 {[%clk 0:00:03.4]} 36... f5 {[%clk 0:00:13.2]} 37. Rc7+ {[%clk
0:00:01.9]} 37... Kf6 {[%clk 0:00:12.4]} 38. Rc3 {[%clk 0:00:02.8]} 38... g5
{[%clk 0:00:10.9]} 39. Kg1 {[%clk 0:00:02.7]} 39... g4 {[%clk 0:00:09.2]} 40.
Rfd3 {[%clk 0:00:02.6]} 40... Qe4 {[%clk 0:00:08.7]} 41. Rxd6+ {[%clk
0:00:02.5]} 41... Kg5 {[%clk 0:00:08.2]} 42. Rd1 {[%clk 0:00:02.6]} 42... Qe2
{[%clk 0:00:06.5]} 43. Rd8 {[%clk 0:00:01.9]} 43... Qxb2 {[%clk 0:00:05.2]} 44.
Rc6 {[%clk 0:00:02.1]} 44... f4 {[%clk 0:00:03.8]} 45. Rg8+ {[%clk 0:00:01.7]}
45... Kf5 {[%clk 0:00:03.1]} 46. gxf4 {[%clk 0:00:02.4]} 46... exf4 {[%clk
0:00:02.4]} 47. Rf8+ {[%clk 0:00:01.9]} 47... Ke4 {[%clk 0:00:01.7]} 48. Rcf6
{[%clk 0:00:02.5]} 1-0

[Event "*** Titled Tuesday Blitz"]
[Site "Chess.com"]
[Date "2020.05.12"]
[Round "3"]
[White "frankshar"]
[Black "MYMChessAcademy"]
[Result "1-0"]
[WhiteElo "2355"]
[BlackElo "2322"]
[TimeControl "180+1"]
[EndTime "10:29:13 PDT"]
[Termination "frankshar won on time"]

1. d4 {[%clk 0:03:00.9]} 1... Nf6 {[%clk 0:02:59.1]} 2. c4 {[%clk 0:03:00.2]}
2... g6 {[%clk 0:03:00]} 3. Nc3 {[%clk 0:03:00.1]} 3... Bg7 {[%clk 0:03:00.9]}
4. e4 {[%clk 0:03:00]} 4... d6 {[%clk 0:03:01.8]} 5. Nf3 {[%clk 0:03:00.4]} 5...
O-O {[%clk 0:03:02.3]} 6. Be2 {[%clk 0:03:00.4]} 6... e5 {[%clk 0:03:02.8]} 7.
O-O {[%clk 0:03:00.1]} 7... Nc6 {[%clk 0:03:02.2]} 8. d5 {[%clk 0:03:00.4]} 8...
Ne7 {[%clk 0:03:02.4]} 9. b4 {[%clk 0:03:00.7]} 9... Kh8 {[%clk 0:03:01.6]} 10.
Nd2 {[%clk 0:02:49.6]} 10... Neg8 {[%clk 0:03:01.4]} 11. c5 {[%clk 0:02:45.6]}
11... Ne8 {[%clk 0:03:01.4]} 12. Nc4 {[%clk 0:02:44.4]} 12... f5 {[%clk
0:03:01.2]} 13. f3 {[%clk 0:02:44]} 13... Nh6 {[%clk 0:02:58.8]} 14. Be3 {[%clk
0:02:36]} 14... f4 {[%clk 0:02:58.8]} 15. Bf2 {[%clk 0:02:35.9]} 15... g5 {[%clk
0:02:59.2]} 16. h3 {[%clk 0:02:33.6]} 16... Rf6 {[%clk 0:02:59.3]} 17. Rc1
{[%clk 0:02:30.3]} 17... Nf7 {[%clk 0:02:58.9]} 18. cxd6 {[%clk 0:02:19.7]}
18... Nexd6 {[%clk 0:02:30.9]} 19. Nxd6 {[%clk 0:02:15.2]} 19... Nxd6 {[%clk
0:02:28.5]} 20. Nb5 {[%clk 0:02:06.9]} 20... Nxb5 {[%clk 0:02:22]} 21. Bxb5
{[%clk 0:02:07.8]} 21... Bf8 {[%clk 0:02:16.4]} 22. Qc2 {[%clk 0:01:43.9]} 22...
Rf7 {[%clk 0:01:58.8]} 23. Bc5 {[%clk 0:01:32.9]} 23... Bd6 {[%clk 0:01:54]} 24.
Ba4 {[%clk 0:01:18.7]} 24... h5 {[%clk 0:01:52.3]} 25. Kf2 {[%clk 0:01:06.7]}
25... g4 {[%clk 0:01:34.7]} 26. hxg4 {[%clk 0:01:04.7]} 26... Qh4+ {[%clk
0:01:29.4]} 27. Ke2 {[%clk 0:01:03.7]} 27... Qg3 {[%clk 0:01:29.3]} 28. Bf2
{[%clk 0:00:54.7]} 28... Qxg2 {[%clk 0:01:00.2]} 29. Rg1 {[%clk 0:00:53.9]}
29... Qh3 {[%clk 0:00:57.9]} 30. Rh1 {[%clk 0:00:53.3]} 30... hxg4 {[%clk
0:00:35.4]} 31. Rxh3+ {[%clk 0:00:52]} 31... gxh3 {[%clk 0:00:36.3]} 32. Be8
{[%clk 0:00:47.9]} 32... Rg7 {[%clk 0:00:32.3]} 33. Bh5 {[%clk 0:00:44.1]} 33...
Rg2 {[%clk 0:00:30.9]} 34. Rh1 {[%clk 0:00:34.4]} 34... Bd7 {[%clk 0:00:29]} 35.
Bg4 {[%clk 0:00:32.1]} 35... Bb5+ {[%clk 0:00:29.1]} 36. Kd1 {[%clk 0:00:28.6]}
36... h2 {[%clk 0:00:29.4]} 37. Bh3 {[%clk 0:00:20.5]} 37... Rag8 {[%clk
0:00:23.5]} 38. Bxg2 {[%clk 0:00:20.1]} 38... Rxg2 {[%clk 0:00:24.4]} 39. a3
{[%clk 0:00:15]} 39... Kg7 {[%clk 0:00:21.3]} 40. Kc1 {[%clk 0:00:14.3]} 40...
Kg6 {[%clk 0:00:21.4]} 41. Kb2 {[%clk 0:00:12.7]} 41... a6 {[%clk 0:00:15.6]}
42. Kb3 {[%clk 0:00:11.7]} 42... Bd7 {[%clk 0:00:12.5]} 43. Qe2 {[%clk
0:00:11.2]} 43... Bb5 {[%clk 0:00:11]} 44. Qe1 {[%clk 0:00:11.3]} 44... Kg5
{[%clk 0:00:10.9]} 45. Bh4+ {[%clk 0:00:10.3]} 45... Kh5 {[%clk 0:00:11.3]} 46.
Bf2 {[%clk 0:00:09.8]} 46... Be7 {[%clk 0:00:09.5]} 47. a4 {[%clk 0:00:09.6]}
47... Bd7 {[%clk 0:00:07.8]} 48. Qf1 {[%clk 0:00:09.7]} 48... Bh3 {[%clk
0:00:08.4]} 49. Qxg2 {[%clk 0:00:09.9]} 49... Bxg2 {[%clk 0:00:08.3]} 50. Rxh2+
{[%clk 0:00:10.8]} 50... Kg6 {[%clk 0:00:08.2]} 51. Rxg2+ {[%clk 0:00:11.2]}
51... Kf7 {[%clk 0:00:07.6]} 52. Bc5 {[%clk 0:00:11.3]} 52... Bf6 {[%clk
0:00:07.6]} 53. Kc4 {[%clk 0:00:10.6]} 53... Bd8 {[%clk 0:00:07]} 54. b5 {[%clk
0:00:10.7]} 54... a5 {[%clk 0:00:05.8]} 55. b6 {[%clk 0:00:10.1]} 55... cxb6
{[%clk 0:00:05.2]} 56. Bd6 {[%clk 0:00:09.8]} 56... Kf6 {[%clk 0:00:04.6]} 57.
Kb5 {[%clk 0:00:09.9]} 57... Kf7 {[%clk 0:00:03.6]} 58. Bxe5 {[%clk 0:00:09.9]}
1-0